[Event "*** Titled Tuesday Blitz"]
[Site "Chess.com"]
[Date "2020.05.05"]
[Round "5"]
[White "WeAintSurePal"]
[Black "Arek_pacitan"]
[Result "0-1"]
[WhiteElo "2392"]
[BlackElo "2557"]
[TimeControl "180+1"]
[EndTime "10:55:58 PDT"]
[Termination "Arek_pacitan won by resignation"]

1. d4 {[%clk 0:03:00.9]} 1... Nf6 {[%clk 0:02:59.5]} 2. Nf3 {[%clk 0:03:00.9]}
2... e6 {[%clk 0:02:58.2]} 3. Bf4 {[%clk 0:02:59.9]} 3... d5 {[%clk 0:02:56.4]}
4. e3 {[%clk 0:03:00.1]} 4... Bd6 {[%clk 0:02:54.2]} 5. c3 {[%clk 0:03:00.6]}
5... c5 {[%clk 0:02:51.5]} 6. Nbd2 {[%clk 0:03:00.2]} 6... Qc7 {[%clk
0:02:50.4]} 7. Ne5 {[%clk 0:02:58.5]} 7... Nfd7 {[%clk 0:02:45.4]} 8. Ndf3
{[%clk 0:02:52.7]} 8... Nxe5 {[%clk 0:02:42.4]} 9. Nxe5 {[%clk 0:02:49.6]} 9...
Nd7 {[%clk 0:02:42.4]} 10. Bb5 {[%clk 0:02:45.6]} 10... O-O {[%clk 0:02:35.9]}
11. Nxd7 {[%clk 0:02:29.1]} 11... Bxd7 {[%clk 0:02:34.2]} 12. Bxd6 {[%clk
0:02:26.5]} 12... Qxd6 {[%clk 0:02:33.6]} 13. dxc5 {[%clk 0:02:25.2]} 13... Qc7
{[%clk 0:02:33.6]} 14. Bxd7 {[%clk 0:02:22.9]} 14... Qxd7 {[%clk 0:02:34.5]} 15.
O-O {[%clk 0:02:23]} 15... Qb5 {[%clk 0:02:25.1]} 16. b4 {[%clk 0:02:21.3]}
16... a5 {[%clk 0:02:24.3]} 17. a3 {[%clk 0:02:18]} 17... axb4 {[%clk
0:02:12.4]} 18. cxb4 {[%clk 0:02:14.8]} 18... Ra4 {[%clk 0:02:10]} 19. Qb3
{[%clk 0:02:09.1]} 19... Rfa8 {[%clk 0:02:10.3]} 20. Rfc1 {[%clk 0:02:06]} 20...
g6 {[%clk 0:02:10.3]} 21. h3 {[%clk 0:02:05]} 21... h5 {[%clk 0:02:07.3]} 22.
Re1 {[%clk 0:02:03.3]} 22... Qa6 {[%clk 0:02:03.5]} 23. Rec1 {[%clk 0:01:56.3]}
23... Rxa3 {[%clk 0:02:01.6]} 24. Rxa3 {[%clk 0:01:54.1]} 24... Qxa3 {[%clk
0:02:02.5]} 25. Qxa3 {[%clk 0:01:54.7]} 25... Rxa3 {[%clk 0:02:03.2]} 26. b5
{[%clk 0:01:55]} 26... Kf8 {[%clk 0:01:54.1]} 27. c6 {[%clk 0:01:47.4]} 27...
bxc6 {[%clk 0:01:53.9]} 28. Rxc6 {[%clk 0:01:46.6]} 28... Rb3 {[%clk 0:01:51]}
29. b6 {[%clk 0:01:46.8]} 29... Kg7 {[%clk 0:01:49.3]} 30. Kf1 {[%clk
0:01:43.2]} 30... Rb2 {[%clk 0:01:49.3]} 31. g4 {[%clk 0:01:39.1]} 31... hxg4
{[%clk 0:01:45.6]} 32. hxg4 {[%clk 0:01:40]} 32... Kf6 {[%clk 0:01:45.4]} 33. f4
{[%clk 0:01:39.4]} 33... g5 {[%clk 0:01:39.2]} 34. f5 {[%clk 0:01:27.6]} 34...
Ke5 {[%clk 0:01:38.4]} 35. fxe6 {[%clk 0:01:23.6]} 35... fxe6 {[%clk 0:01:38]}
36. Ke1 {[%clk 0:01:21.5]} 36... Rb4 {[%clk 0:01:37.5]} 37. Kd2 {[%clk
0:01:08.5]} 37... Rxg4 {[%clk 0:01:35.3]} 38. Kc3 {[%clk 0:01:08.5]} 38... Rg1
{[%clk 0:01:31.4]} 39. Kb4 {[%clk 0:01:06.8]} 39... Rb1+ {[%clk 0:01:27.4]} 40.
Ka5 {[%clk 0:01:06.7]} 40... g4 {[%clk 0:01:25.8]} 41. Ka6 {[%clk 0:00:54.7]}
41... g3 {[%clk 0:01:19.2]} 42. Rc2 {[%clk 0:00:53.5]} 42... Ke4 {[%clk
0:01:17.4]} 43. Rc6 {[%clk 0:00:40.9]} 43... g2 {[%clk 0:01:06.6]} 44. Rxe6+
{[%clk 0:00:39.9]} 44... Kf5 {[%clk 0:01:07]} 0-1

[Event "*** Titled Tuesday Blitz"]
[Site "Chess.com"]
[Date "2020.05.05"]
[Round "5"]
[White "JonahWillow"]
[Black "RestartingChess"]
[Result "0-1"]
[WhiteElo "2688"]
[BlackElo "2511"]
[TimeControl "180+1"]
[EndTime "10:56:01 PDT"]
[Termination "RestartingChess won by resignation"]

1. e4 {[%clk 0:03:00.9]} 1... d5 {[%clk 0:03:00.1]} 2. Nc3 {[%clk 0:02:59.8]}
2... dxe4 {[%clk 0:02:59.9]} 3. Nxe4 {[%clk 0:03:00.7]} 3... Nf6 {[%clk
0:03:00.6]} 4. Nxf6+ {[%clk 0:03:00.8]} 4... exf6 {[%clk 0:03:01.5]} 5. d4
{[%clk 0:03:01.5]} 5... Bf5 {[%clk 0:03:00.7]} 6. c3 {[%clk 0:02:57.4]} 6... Bd6
{[%clk 0:03:00.7]} 7. Bd3 {[%clk 0:02:52]} 7... Qd7 {[%clk 0:02:53.1]} 8. Ne2
{[%clk 0:02:49.4]} 8... O-O {[%clk 0:02:52.6]} 9. O-O {[%clk 0:02:49.4]} 9...
Nc6 {[%clk 0:02:42.4]} 10. Be3 {[%clk 0:02:49.6]} 10... Ne7 {[%clk 0:02:39.4]}
11. Ng3 {[%clk 0:02:47.9]} 11... Bxd3 {[%clk 0:02:36.9]} 12. Qxd3 {[%clk
0:02:48.8]} 12... Nd5 {[%clk 0:02:35.7]} 13. Rae1 {[%clk 0:02:38.5]} 13... Nxe3
{[%clk 0:02:33.9]} 14. Rxe3 {[%clk 0:02:31.9]} 14... Rfe8 {[%clk 0:02:33.5]} 15.
Rfe1 {[%clk 0:02:30.6]} 15... Rxe3 {[%clk 0:02:27.6]} 16. Qxe3 {[%clk
0:02:31.5]} 16... g6 {[%clk 0:02:22.4]} 17. Ne4 {[%clk 0:02:30.4]} 17... Kg7
{[%clk 0:02:11.8]} 18. Nxd6 {[%clk 0:02:19.6]} 18... Qxd6 {[%clk 0:02:10.9]} 19.
Qe7 {[%clk 0:02:20.3]} 19... Rd8 {[%clk 0:02:05.4]} 20. g3 {[%clk 0:02:13.9]}
20... Rd7 {[%clk 0:01:55.5]} 21. Qxd6 {[%clk 0:02:12.4]} 21... cxd6 {[%clk
0:01:54]} 22. Re8 {[%clk 0:02:10.3]} 22... d5 {[%clk 0:01:52.3]} 23. f4 {[%clk
0:02:02]} 23... f5 {[%clk 0:01:51.8]} 24. Kf2 {[%clk 0:02:00.4]} 24... Kf6
{[%clk 0:01:51.1]} 25. Ke3 {[%clk 0:01:56.4]} 25... Rd6 {[%clk 0:01:32.4]} 26.
Kd3 {[%clk 0:01:53]} 26... Re6 {[%clk 0:01:23.8]} 27. Rd8 {[%clk 0:01:49.3]}
27... Re1 {[%clk 0:01:22.4]} 28. Rxd5 {[%clk 0:01:47.5]} 28... Rh1 {[%clk
0:01:22.7]} 29. Rd7 {[%clk 0:01:45.3]} 29... Rxh2 {[%clk 0:01:23]} 30. Rxb7
{[%clk 0:01:44.9]} 30... Rg2 {[%clk 0:01:23.9]} 31. d5 {[%clk 0:01:44]} 31...
Rxg3+ {[%clk 0:01:24.8]} 32. Ke2 {[%clk 0:01:30.1]} 32... h5 {[%clk 0:01:21.1]}
33. c4 {[%clk 0:01:27.8]} 33... h4 {[%clk 0:01:15.2]} 34. Kf2 {[%clk 0:01:10.6]}
34... Rg4 {[%clk 0:01:13.1]} 35. Rb8 {[%clk 0:01:03.8]} 35... Rxf4+ {[%clk
0:01:13.1]} 36. Ke3 {[%clk 0:00:42.2]} 36... Rxc4 {[%clk 0:01:13.6]} 37. d6
{[%clk 0:00:40]} 37... Ke6 {[%clk 0:01:12.1]} 38. Rb7 {[%clk 0:00:39.3]} 38...
h3 {[%clk 0:01:01.5]} 39. d7 {[%clk 0:00:38.2]} 39... Ke7 {[%clk 0:01:01.7]} 40.
Rb8 {[%clk 0:00:29.5]} 40... Kxd7 {[%clk 0:01:01.4]} 41. Rh8 {[%clk 0:00:30.2]}
41... Rc2 {[%clk 0:00:59.7]} 42. Rxh3 {[%clk 0:00:30.2]} 42... Rxb2 {[%clk
0:01:00.2]} 0-1

[Event "*** Titled Tuesday Blitz"]
[Site "Chess.com"]
[Date "2020.05.05"]
[Round "5"]
[White "Opening_Prep"]
[Black "SerGo055"]
[Result "1-0"]
[WhiteElo "2348"]
[BlackElo "2591"]
[TimeControl "180+1"]
[EndTime "10:56:01 PDT"]
[Termination "Opening_Prep won by resignation"]

1. d4 {[%clk 0:02:57.3]} 1... Nf6 {[%clk 0:02:58.1]} 2. Nc3 {[%clk 0:02:56.4]}
2... d5 {[%clk 0:02:57.2]} 3. Bf4 {[%clk 0:02:56.5]} 3... Bf5 {[%clk 0:02:56.2]}
4. e3 {[%clk 0:02:54.5]} 4... c6 {[%clk 0:02:55.7]} 5. f3 {[%clk 0:02:54.1]}
5... Qb6 {[%clk 0:02:54]} 6. Rb1 {[%clk 0:02:44.5]} 6... Nbd7 {[%clk 0:02:52.6]}
7. g4 {[%clk 0:02:43.6]} 7... Bg6 {[%clk 0:02:52]} 8. h4 {[%clk 0:02:43.7]} 8...
h6 {[%clk 0:02:45.4]} 9. Nge2 {[%clk 0:02:41.2]} 9... e6 {[%clk 0:02:39.2]} 10.
Ng3 {[%clk 0:02:36.4]} 10... c5 {[%clk 0:02:23.5]} 11. Bd3 {[%clk 0:02:02.8]}
11... Bxd3 {[%clk 0:01:53.5]} 12. Qxd3 {[%clk 0:02:03.7]} 12... Rc8 {[%clk
0:01:22.3]} 13. a3 {[%clk 0:01:58.2]} 13... Bd6 {[%clk 0:01:17.1]} 14. Nce2
{[%clk 0:01:40.2]} 14... cxd4 {[%clk 0:00:57]} 15. exd4 {[%clk 0:01:37.7]} 15...
Bxf4 {[%clk 0:00:56.7]} 16. Nxf4 {[%clk 0:01:38.6]} 16... Qc7 {[%clk 0:00:56.6]}
17. Qe3 {[%clk 0:01:04.5]} 17... Qxc2 {[%clk 0:00:32.1]} 18. O-O {[%clk
0:01:04.5]} 18... O-O {[%clk 0:00:25]} 19. g5 {[%clk 0:01:04.5]} 19... hxg5
{[%clk 0:00:22]} 20. hxg5 {[%clk 0:01:05.4]} 20... Ne8 {[%clk 0:00:12.7]} 21.
Rfc1 {[%clk 0:01:03.9]} 21... Qh7 {[%clk 0:00:05.9]} 22. g6 {[%clk 0:01:00.7]}
22... Rxc1+ {[%clk 0:00:06.3]} 23. Rxc1 {[%clk 0:01:00.3]} 23... fxg6 {[%clk
0:00:06.6]} 24. Qxe6+ {[%clk 0:01:00.1]} 24... Kh8 {[%clk 0:00:04.9]} 25. Nxg6+
{[%clk 0:00:59.2]} 25... Qxg6 {[%clk 0:00:05]} 26. Qxg6 {[%clk 0:01:00.1]} 26...
Ndf6 {[%clk 0:00:04]} 27. Kg2 {[%clk 0:00:57.3]} 1-0

[Event "*** Titled Tuesday Blitz"]
[Site "Chess.com"]
[Date "2020.05.05"]
[Round "5"]
[White "harvsp123"]
[Black "Gordima"]
[Result "0-1"]
[WhiteElo "2525"]
[BlackElo "2789"]
[TimeControl "180+1"]
[EndTime "10:56:03 PDT"]
[Termination "Gordima won by resignation"]

1. e4 {[%clk 0:03:00.5]} 1... e5 {[%clk 0:02:59.4]} 2. Nf3 {[%clk 0:03:00.5]}
2... Nc6 {[%clk 0:02:59.9]} 3. Bb5 {[%clk 0:03:01]} 3... Nf6 {[%clk 0:02:59.7]}
4. O-O {[%clk 0:03:00.7]} 4... Nxe4 {[%clk 0:03:00]} 5. d4 {[%clk 0:03:01.2]}
5... Nd6 {[%clk 0:03:00.3]} 6. Bxc6 {[%clk 0:03:01.6]} 6... dxc6 {[%clk
0:03:01.2]} 7. dxe5 {[%clk 0:03:02.1]} 7... Nf5 {[%clk 0:03:01.8]} 8. Qxd8+
{[%clk 0:03:02.5]} 8... Kxd8 {[%clk 0:03:01.9]} 9. h3 {[%clk 0:03:03.4]} 9... h5
{[%clk 0:03:01.4]} 10. Nc3 {[%clk 0:03:02.1]} 10... Be7 {[%clk 0:02:58.3]} 11.
Bf4 {[%clk 0:03:02.1]} 11... Be6 {[%clk 0:02:53.6]} 12. Rad1+ {[%clk 0:03:01.7]}
12... Kc8 {[%clk 0:02:51.2]} 13. Ng5 {[%clk 0:02:59.2]} 13... Bxg5 {[%clk
0:02:50.1]} 14. Bxg5 {[%clk 0:02:58.3]} 14... h4 {[%clk 0:02:47.5]} 15. Kh2
{[%clk 0:02:30.2]} 15... b6 {[%clk 0:02:47.5]} 16. g4 {[%clk 0:02:24]} 16...
hxg3+ {[%clk 0:02:48.4]} 17. fxg3 {[%clk 0:02:24.2]} 17... c5 {[%clk 0:02:48.3]}
18. g4 {[%clk 0:02:24]} 18... Nd4 {[%clk 0:02:48.4]} 19. Kg3 {[%clk 0:02:01.1]}
19... Nxc2 {[%clk 0:02:46.9]} 20. Nd5 {[%clk 0:01:55.1]} 20... Nd4 {[%clk
0:02:36]} 21. Nf4 {[%clk 0:01:45.9]} 21... Bxa2 {[%clk 0:02:35.7]} 22. Nh5
{[%clk 0:01:40.3]} 22... g6 {[%clk 0:02:31.3]} 23. Nf4 {[%clk 0:01:27.9]} 23...
a5 {[%clk 0:02:30.7]} 24. Bf6 {[%clk 0:01:24.9]} 24... Rh7 {[%clk 0:02:27.7]}
25. h4 {[%clk 0:01:24.8]} 25... a4 {[%clk 0:02:27.9]} 26. Nh3 {[%clk 0:01:00.6]}
26... Ne6 {[%clk 0:02:14]} 27. Be7 {[%clk 0:00:34]} 27... a3 {[%clk 0:02:09]}
28. bxa3 {[%clk 0:00:27.4]} 28... Rxa3+ {[%clk 0:02:09.9]} 29. Rf3 {[%clk
0:00:27.4]} 29... Ra4 {[%clk 0:01:50.9]} 30. Rdf1 {[%clk 0:00:22.9]} 30... Bd5
{[%clk 0:01:29.1]} 31. Re3 {[%clk 0:00:22.6]} 31... Kd7 {[%clk 0:01:23.6]} 32.
Bf6 {[%clk 0:00:22.2]} 32... Kc6 {[%clk 0:01:23.9]} 33. Rc1 {[%clk 0:00:16.6]}
33... b5 {[%clk 0:01:23.2]} 34. Rec3 {[%clk 0:00:14.6]} 34... c4 {[%clk
0:01:19.2]} 35. Rd1 {[%clk 0:00:13.7]} 35... b4 {[%clk 0:01:18.9]} 36. Rc2
{[%clk 0:00:12.2]} 36... c3 {[%clk 0:01:16.2]} 37. Rb1 {[%clk 0:00:08.1]} 37...
Be4 {[%clk 0:01:12]} 0-1

[Event "*** Titled Tuesday Blitz"]
[Site "Chess.com"]
[Date "2020.05.05"]
[Round "5"]
[White "Tsukasa06"]
[Black "Kaponov"]
[Result "1/2-1/2"]
[WhiteElo "2229"]
[BlackElo "2058"]
[TimeControl "180+1"]
[EndTime "10:56:03 PDT"]
[Termination "Game drawn by repetition"]

1. e4 {[%clk 0:03:00.9]} 1... e6 {[%clk 0:03:00]} 2. d4 {[%clk 0:02:57.4]} 2...
d5 {[%clk 0:03:00.6]} 3. Nc3 {[%clk 0:02:48.3]} 3... Nf6 {[%clk 0:03:00.3]} 4.
e5 {[%clk 0:02:47.4]} 4... Nfd7 {[%clk 0:02:57.2]} 5. f4 {[%clk 0:02:40.5]} 5...
c5 {[%clk 0:02:57.3]} 6. Nf3 {[%clk 0:02:36.5]} 6... Nc6 {[%clk 0:02:57.8]} 7.
Ne2 {[%clk 0:02:35.3]} 7... cxd4 {[%clk 0:02:55.9]} 8. Nexd4 {[%clk 0:02:32.6]}
8... Bc5 {[%clk 0:02:50.6]} 9. c3 {[%clk 0:02:23.5]} 9... Qb6 {[%clk 0:02:47.4]}
10. b4 {[%clk 0:02:16.5]} 10... Bxd4 {[%clk 0:02:43.4]} 11. Nxd4 {[%clk
0:02:16.1]} 11... Nxd4 {[%clk 0:02:42.5]} 12. Qxd4 {[%clk 0:02:16.2]} 12... Qxd4
{[%clk 0:02:41.4]} 13. cxd4 {[%clk 0:02:16.2]} 13... Nb6 {[%clk 0:02:40.5]} 14.
a4 {[%clk 0:02:12.8]} 14... Bd7 {[%clk 0:02:31.6]} 15. b5 {[%clk 0:02:04.6]}
15... Rc8 {[%clk 0:02:28.7]} 16. Ba3 {[%clk 0:02:03.9]} 16... Nc4 {[%clk
0:02:22.3]} 17. Bb4 {[%clk 0:01:54.3]} 17... f5 {[%clk 0:02:05.2]} 18. Bd3
{[%clk 0:01:48]} 18... Kf7 {[%clk 0:02:00.4]} 19. O-O {[%clk 0:01:45.9]} 19...
Rc7 {[%clk 0:01:55.8]} 20. Rfc1 {[%clk 0:01:42.6]} 20... Rhc8 {[%clk 0:01:55.4]}
21. Kf2 {[%clk 0:01:34.1]} 21... Nb2 {[%clk 0:01:36.8]} 22. Rxc7 {[%clk
0:01:23.2]} 22... Rxc7 {[%clk 0:01:09.9]} 23. Ke3 {[%clk 0:01:19.7]} 23... Nxd3
{[%clk 0:00:57.5]} 24. Kxd3 {[%clk 0:01:17.1]} 24... Rc4 {[%clk 0:00:57.8]} 25.
Rb1 {[%clk 0:01:06.9]} 25... Ke8 {[%clk 0:00:54]} 26. h3 {[%clk 0:00:40.7]}
26... h5 {[%clk 0:00:52.4]} 27. Rb2 {[%clk 0:00:40.1]} 27... g6 {[%clk
0:00:51.2]} 28. Rb1 {[%clk 0:00:39.4]} 28... Kf7 {[%clk 0:00:43.4]} 29. Rb2
{[%clk 0:00:38.4]} 29... Ke8 {[%clk 0:00:43.2]} 30. Rb1 {[%clk 0:00:38.2]} 30...
Kf7 {[%clk 0:00:42.1]} 31. Rb2 {[%clk 0:00:38.2]} 31... Ke8 {[%clk 0:00:41.9]}
1/2-1/2

[Event "*** Titled Tuesday Blitz"]
[Site "Chess.com"]
[Date "2020.05.05"]
[Round "5"]
[White "Sanyura"]
[Black "energie73"]
[Result "0-1"]
[WhiteElo "2479"]
[BlackElo "2338"]
[TimeControl "180+1"]
[EndTime "10:56:04 PDT"]
[Termination "energie73 won by resignation"]

1. e4 {[%clk 0:02:51.9]} 1... e5 {[%clk 0:02:59.2]} 2. Nf3 {[%clk 0:02:49.5]}
2... Nc6 {[%clk 0:02:59.2]} 3. Bb5 {[%clk 0:02:49.9]} 3... a6 {[%clk 0:02:59.2]}
4. Ba4 {[%clk 0:02:49.2]} 4... Nf6 {[%clk 0:02:58]} 5. O-O {[%clk 0:02:48]} 5...
Be7 {[%clk 0:02:51.8]} 6. Re1 {[%clk 0:02:47.1]} 6... b5 {[%clk 0:02:51]} 7. Bb3
{[%clk 0:02:47.5]} 7... O-O {[%clk 0:02:51.5]} 8. h3 {[%clk 0:02:47.3]} 8... Bb7
{[%clk 0:02:51]} 9. Nc3 {[%clk 0:02:46]} 9... d6 {[%clk 0:02:39.8]} 10. a4
{[%clk 0:02:46]} 10... b4 {[%clk 0:02:26.9]} 11. Nd5 {[%clk 0:02:46.1]} 11...
Na5 {[%clk 0:02:18.3]} 12. Ba2 {[%clk 0:02:31.3]} 12... Nxd5 {[%clk 0:02:13.6]}
13. Bxd5 {[%clk 0:02:30.6]} 13... Bxd5 {[%clk 0:02:06]} 14. exd5 {[%clk
0:02:31.5]} 14... c5 {[%clk 0:02:04.3]} 15. d3 {[%clk 0:02:24.9]} 15... Nb7
{[%clk 0:01:57.5]} 16. Nd2 {[%clk 0:02:15.2]} 16... f5 {[%clk 0:01:57.1]} 17.
Nc4 {[%clk 0:02:14.7]} 17... Na5 {[%clk 0:01:57]} 18. f4 {[%clk 0:02:06.9]}
18... Nxc4 {[%clk 0:01:55.9]} 19. dxc4 {[%clk 0:02:07.8]} 19... e4 {[%clk
0:01:48.1]} 20. b3 {[%clk 0:02:00.2]} 20... Bf6 {[%clk 0:01:46.7]} 21. Rb1
{[%clk 0:02:00.6]} 21... Bc3 {[%clk 0:01:45.6]} 22. Rf1 {[%clk 0:01:57.5]} 22...
Qh4 {[%clk 0:01:44.6]} 23. Be3 {[%clk 0:01:56.5]} 23... Rf6 {[%clk 0:01:44.5]}
24. Qe2 {[%clk 0:01:42.5]} 24... Rg6 {[%clk 0:01:44.4]} 25. Kh1 {[%clk
0:01:41.2]} 25... Rf8 {[%clk 0:01:33]} 26. Rbd1 {[%clk 0:00:57.1]} 26... Rg3
{[%clk 0:01:25.7]} 27. Bf2 {[%clk 0:00:54.1]} 27... Rxh3+ {[%clk 0:01:25.2]} 28.
gxh3 {[%clk 0:00:53.4]} 28... Qxh3+ {[%clk 0:01:26.1]} 29. Kg1 {[%clk
0:00:53.9]} 29... Rf6 {[%clk 0:01:26.8]} 30. Bg3 {[%clk 0:00:41]} 30... Rg6
{[%clk 0:01:16.9]} 31. Rf2 {[%clk 0:00:39.3]} 31... Rxg3+ {[%clk 0:01:10.1]} 32.
Rg2 {[%clk 0:00:38.2]} 32... Bd4+ {[%clk 0:01:11]} 33. Rxd4 {[%clk 0:00:37.6]}
33... cxd4 {[%clk 0:01:11.9]} 34. Rxg3 {[%clk 0:00:29.2]} 34... Qxg3+ {[%clk
0:01:11.7]} 35. Kh1 {[%clk 0:00:29.8]} 35... Qxf4 {[%clk 0:01:08]} 36. Qh5
{[%clk 0:00:29.3]} 36... g6 {[%clk 0:01:07.7]} 37. Qh3 {[%clk 0:00:26.6]} 37...
e3 {[%clk 0:01:07.1]} 38. c5 {[%clk 0:00:23.5]} 38... e2 {[%clk 0:01:06.1]} 39.
Qh4 {[%clk 0:00:19.7]} 39... Qxh4+ {[%clk 0:01:05.7]} 0-1

[Event "*** Titled Tuesday Blitz"]
[Site "Chess.com"]
[Date "2020.05.05"]
[Round "5"]
[White "WiktoriaPOL"]
[Black "DanielTitichoca"]
[Result "0-1"]
[WhiteElo "2026"]
[BlackElo "2290"]
[TimeControl "180+1"]
[EndTime "10:56:07 PDT"]
[Termination "DanielTitichoca won on time"]

1. c4 {[%clk 0:03:00.9]} 1... e5 {[%clk 0:02:57.6]} 2. Nc3 {[%clk 0:02:59.8]}
2... f5 {[%clk 0:02:54.6]} 3. d4 {[%clk 0:02:56]} 3... exd4 {[%clk 0:02:50.2]}
4. Qxd4 {[%clk 0:02:54.1]} 4... Nc6 {[%clk 0:02:50.4]} 5. Qd2 {[%clk 0:02:52.2]}
5... Nf6 {[%clk 0:02:49.2]} 6. b3 {[%clk 0:02:50]} 6... Bb4 {[%clk 0:02:47.9]}
7. Bb2 {[%clk 0:02:40.2]} 7... Ne4 {[%clk 0:02:43.8]} 8. Qc2 {[%clk 0:02:35.3]}
8... Nd4 {[%clk 0:02:40.5]} 9. Qd3 {[%clk 0:02:32.7]} 9... Qf6 {[%clk
0:02:28.9]} 10. Rc1 {[%clk 0:02:09.8]} 10... O-O {[%clk 0:02:20.4]} 11. a3
{[%clk 0:02:06.2]} 11... Nxb3 {[%clk 0:02:15.2]} 12. axb4 {[%clk 0:01:51.5]}
12... Nxc1 {[%clk 0:02:12.8]} 13. Qd5+ {[%clk 0:01:31.9]} 13... Kh8 {[%clk
0:02:11]} 14. Nd1 {[%clk 0:00:58.2]} 14... c6 {[%clk 0:01:34.8]} 15. Qa5 {[%clk
0:00:47.5]} 15... Nb3 {[%clk 0:01:29.5]} 16. Qa4 {[%clk 0:00:13.9]} 16... Nd4
{[%clk 0:01:22.3]} 17. e3 {[%clk 0:00:09.9]} 17... c5 {[%clk 0:01:20.7]} 18.
bxc5 {[%clk 0:00:05.5]} 18... Nxc5 {[%clk 0:01:16.6]} 19. Qa2 {[%clk 0:00:02.9]}
19... Nc2+ {[%clk 0:01:14.4]} 20. Kd2 {[%clk 0:00:02.6]} 20... Nb4 {[%clk
0:01:05.4]} 21. Qa3 {[%clk 0:00:02.1]} 21... Qb6 {[%clk 0:01:01.2]} 22. Bc3
{[%clk 0:00:02.2]} 22... a5 {[%clk 0:00:58.6]} 23. Nb2 {[%clk 0:00:01.3]} 23...
Ne4+ {[%clk 0:00:58.1]} 0-1

[Event "*** Titled Tuesday Blitz"]
[Site "Chess.com"]
[Date "2020.05.05"]
[Round "5"]
[White "mariofs"]
[Black "HouseOfDurin"]
[Result "1-0"]
[WhiteElo "2157"]
[BlackElo "1990"]
[TimeControl "180+1"]
[EndTime "10:56:07 PDT"]
[Termination "mariofs won on time"]

1. d4 {[%clk 0:03:00.9]} 1... Nf6 {[%clk 0:02:59.5]} 2. c4 {[%clk 0:03:00.8]}
2... c5 {[%clk 0:02:58.8]} 3. Nf3 {[%clk 0:03:00.5]} 3... cxd4 {[%clk
0:02:58.7]} 4. Nxd4 {[%clk 0:03:01.4]} 4... Nc6 {[%clk 0:02:58.8]} 5. Nc3 {[%clk
0:03:01.2]} 5... g6 {[%clk 0:02:59.1]} 6. e4 {[%clk 0:03:01.1]} 6... d6 {[%clk
0:02:58.4]} 7. Be2 {[%clk 0:03:01.3]} 7... Bg7 {[%clk 0:02:58.4]} 8. Be3 {[%clk
0:02:59]} 8... O-O {[%clk 0:02:57.8]} 9. f4 {[%clk 0:02:53.4]} 9... Qa5 {[%clk
0:02:52]} 10. O-O {[%clk 0:02:52]} 10... Rd8 {[%clk 0:02:45.1]} 11. h3 {[%clk
0:02:47.4]} 11... Nxd4 {[%clk 0:02:05.8]} 12. Bxd4 {[%clk 0:02:47.4]} 12... e5
{[%clk 0:02:05.5]} 13. Be3 {[%clk 0:02:39.7]} 13... Qb4 {[%clk 0:01:46.8]} 14.
fxe5 {[%clk 0:02:22.2]} 14... Ne8 {[%clk 0:01:06]} 15. Nd5 {[%clk 0:02:11.9]}
15... Qxb2 {[%clk 0:01:02.4]} 16. Bd4 {[%clk 0:02:12.1]} 16... Qa3 {[%clk
0:00:47.2]} 17. Nf6+ {[%clk 0:02:03.6]} 17... Kh8 {[%clk 0:00:47.2]} 18. Nxe8
{[%clk 0:01:51.2]} 18... Rxe8 {[%clk 0:00:48.1]} 19. exd6 {[%clk 0:01:49.7]}
19... Bxh3 {[%clk 0:00:25.4]} 20. Rxf7 {[%clk 0:01:32.1]} 20... Rg8 {[%clk
0:00:17.2]} 21. Bf3 {[%clk 0:01:23.9]} 21... Be6 {[%clk 0:00:13.6]} 22. Rxg7
{[%clk 0:01:15]} 22... Rxg7 {[%clk 0:00:14.5]} 23. c5 {[%clk 0:01:10.4]} 23...
Kg8 {[%clk 0:00:11.7]} 24. Bxg7 {[%clk 0:01:10.5]} 24... Kxg7 {[%clk 0:00:12.6]}
25. Qd4+ {[%clk 0:01:10.3]} 25... Kg8 {[%clk 0:00:11.6]} 26. e5 {[%clk
0:01:05.1]} 26... Rc8 {[%clk 0:00:10]} 27. Bd5 {[%clk 0:01:03.5]} 27... Bxd5
{[%clk 0:00:06.6]} 28. Qxd5+ {[%clk 0:01:04.4]} 28... Kh8 {[%clk 0:00:07.2]} 29.
d7 {[%clk 0:01:04.5]} 29... Rd8 {[%clk 0:00:03]} 30. Qd4 {[%clk 0:00:56.7]} 1-0

[Event "*** Titled Tuesday Blitz"]
[Site "Chess.com"]
[Date "2020.05.05"]
[Round "5"]
[White "Shukh_Nikolay"]
[Black "mjray79"]
[Result "1-0"]
[WhiteElo "2531"]
[BlackElo "2250"]
[TimeControl "180+1"]
[EndTime "10:56:09 PDT"]
[Termination "Shukh_Nikolay won by checkmate"]

1. e4 {[%clk 0:03:00.9]} 1... e5 {[%clk 0:02:59.9]} 2. Nf3 {[%clk 0:03:00.2]}
2... Nc6 {[%clk 0:03:00.1]} 3. Bb5 {[%clk 0:02:59.5]} 3... a6 {[%clk 0:03:00.4]}
4. Ba4 {[%clk 0:02:59.4]} 4... Nf6 {[%clk 0:02:59.2]} 5. O-O {[%clk 0:02:58.9]}
5... Be7 {[%clk 0:02:59.2]} 6. Re1 {[%clk 0:02:57.9]} 6... b5 {[%clk 0:02:59.2]}
7. Bb3 {[%clk 0:02:57.6]} 7... d6 {[%clk 0:02:59.7]} 8. a3 {[%clk 0:02:57.1]}
8... O-O {[%clk 0:02:58.7]} 9. c3 {[%clk 0:02:56.8]} 9... Nb8 {[%clk 0:02:57.1]}
10. d4 {[%clk 0:02:54.5]} 10... Nbd7 {[%clk 0:02:51.3]} 11. Nbd2 {[%clk
0:02:53.6]} 11... c5 {[%clk 0:02:48.8]} 12. Nf1 {[%clk 0:02:49.1]} 12... Qc7
{[%clk 0:02:44.4]} 13. Ng3 {[%clk 0:02:47.9]} 13... Re8 {[%clk 0:02:41.9]} 14.
Ng5 {[%clk 0:02:28.7]} 14... c4 {[%clk 0:02:39.5]} 15. Bc2 {[%clk 0:02:28.1]}
15... Bf8 {[%clk 0:02:32.1]} 16. f4 {[%clk 0:02:22.4]} 16... g6 {[%clk
0:02:31.7]} 17. f5 {[%clk 0:02:16.4]} 17... Bg7 {[%clk 0:02:28.2]} 18. Rf1
{[%clk 0:02:02.9]} 18... Bb7 {[%clk 0:01:53.7]} 19. d5 {[%clk 0:02:00]} 19...
Nc5 {[%clk 0:01:50.3]} 20. h3 {[%clk 0:01:40.5]} 20... h6 {[%clk 0:01:44.8]} 21.
Nf3 {[%clk 0:01:38.4]} 21... Kh7 {[%clk 0:01:42.2]} 22. Be3 {[%clk 0:01:37.2]}
22... Rad8 {[%clk 0:01:30.2]} 23. Qe2 {[%clk 0:01:36]} 23... Bc8 {[%clk
0:01:22.7]} 24. Nh2 {[%clk 0:01:30.6]} 24... a5 {[%clk 0:01:12.1]} 25. Rf2
{[%clk 0:01:28.7]} 25... Qb6 {[%clk 0:01:05.4]} 26. Raf1 {[%clk 0:01:26.6]}
26... b4 {[%clk 0:01:03.6]} 27. axb4 {[%clk 0:01:20.9]} 27... axb4 {[%clk
0:01:04.5]} 28. fxg6+ {[%clk 0:01:20.7]} 28... fxg6 {[%clk 0:01:04.1]} 29. Rxf6
{[%clk 0:01:19.2]} 29... Bxf6 {[%clk 0:01:05]} 30. Rxf6 {[%clk 0:01:18.8]} 30...
bxc3 {[%clk 0:00:52.8]} 31. bxc3 {[%clk 0:01:17.4]} 31... Rf8 {[%clk 0:00:50]}
32. Qf2 {[%clk 0:01:16.3]} 32... Rxf6 {[%clk 0:00:43.1]} 33. Qxf6 {[%clk
0:01:15.5]} 33... Qc7 {[%clk 0:00:30.9]} 34. Nf3 {[%clk 0:01:09.6]} 34... Nd7
{[%clk 0:00:26.2]} 35. Qf7+ {[%clk 0:01:07.4]} 35... Kh8 {[%clk 0:00:25.4]} 36.
Bxh6 {[%clk 0:01:06.2]} 36... Rg8 {[%clk 0:00:25]} 37. Ng5 {[%clk 0:01:04]}
37... Nc5 {[%clk 0:00:20.6]} 38. Qxc7 {[%clk 0:01:02]} 38... Nxe4 {[%clk
0:00:20.2]} 39. Qh7# {[%clk 0:01:00.6]} 1-0